[Event "55th Rubinstein Memorial-A 2019"]
[Site "Polanica-Zdroj"]
[Date "2019.08.21"]
[Round "5.3"]
[White "Jaroch, Karol"]
[Black "Kosakowski, Jakub"]
[Result "1/2-1/2"]
[ECO "B30"]
[WhiteElo "2231"]
[BlackElo "2401"]
[Annotator "NA"]
[PlyCount "62"]
[EventDate "2019.08.17"]
[EventType "swiss"]
[EventCountry "POL"]
[SourceTitle "playchess.com"]
[Source "ChessBase"]
[SourceQuality "1"]
[TimeControl "40/5400+30:1800+30"]

1. e4 {[%emt 0:00:00]} c5 {[%emt 0:00:00]} 2. Nf3 {[%emt 0:00:00]} Nc6 {[%emt 0:00:00]} 3. Bb5 {[%emt 0:06:17]} e5 {[%emt 0:00:45]} 4. O-O {[%emt 0:00:21]} Bd6 {[%emt 0:00:06]} 5. Re1 {[%emt 0:05:15]} a6 {[%emt 0:01:57]} 6. Bxc6 {[%emt 0:02:21]} dxc6 {[%emt 0:00:21]} 7. d3 {[%emt 0:00:08]} Ne7 {[%emt 0:00:15]} 8. Nbd2 {[%emt 0:00:28]} Ng6 {[%emt 0:00:35]} 9. Nc4 {[%emt 0:03:46]} Bc7 {[%emt 0:00:10]} 10. Ne3 {[%emt 0:05:24]} Qf6 {[%emt 0:09:06]} 11. h3 {[%emt 0:11:20]} O-O {[%emt 0:01:17]} 12. Ng4 {[%emt 0:06:44]} Qe7 {[%emt 0:06:46]} 13. Ne3 {[%emt 0:06:54]} Be6 {[%emt 0:18:56]} 14. Nf5 {[%emt 0:03:09]} Qd7 {[%emt 0:00:51]} 15. g4 {[%emt 0:01:32]} Nf4 {[%emt 0:00:52]} 16. Bxf4 {[%emt 0:04:15]} exf4 {[%emt 0:00:18]} 17. d4 {[%emt 0:01:47]} cxd4 {[%emt 0:08:54]} 18. Qxd4 {[%emt 0:00:43]} Qxd4 {[%emt 0:01:11]} 19. N3xd4 {[%emt 0:02:52]} Rad8 {[%emt 0:02:44]} 20. Red1 {[%emt 0:11:18]} Bd7 {[%emt 0:15:46]} 21. Nb3 {[%emt 0:08:37]} b6 {[%emt 0:02:39]} 22. Rd2 {[%emt 0:03:46]} Bxf5 {[%emt 0:16:51]} 23. exf5 {[%emt 0:00:59]} Rxd2 {[%emt 0:00:17]} 24. Nxd2 {[%emt 0:00:05]} Rd8 {[%emt 0:00:07]} 25. Nf3 {[%emt 0:00:50]} g6 {[%emt 0:00:20]} 26. fxg6 {[%emt 0:01:36]} hxg6 {[%emt 0:00:12]} 27. Re1 {[%emt 0:00:36]} Kf8 {[%emt 0:00:15]} 28. Kf1 {[%emt 0:00:07]} b5 {[%emt 0:03:05]} 29. Ke2 {[%emt 0:05:43]} Re8+ {[%emt 0:02:20]} 30. Kd3 {[%emt 0:00:39]} Rd8+ {[%emt 0:00:12]} 31. Ke2 {[%emt 0:00:10]} Re8+ {[%emt 0:04:33]} 1/2-1/2

[Event "55th Rubinstein Memorial-A 2019"]
[Site "Polanica-Zdroj"]
[Date "2019.08.21"]
[Round "5.4"]
[White "Kaczmarek, Arkadiusz"]
[Black "Marszalek, Maciej"]
[Result "0-1"]
[ECO "A77"]
[WhiteElo "1986"]
[BlackElo "2295"]
[Annotator "NA"]
[PlyCount "82"]
[EventDate "2019.08.17"]
[EventType "swiss"]
[EventCountry "POL"]
[SourceTitle "playchess.com"]
[Source "ChessBase"]
[SourceQuality "1"]
[TimeControl "40/5400+30:1800+30"]

1. d4 {[%emt 0:00:00]} Nf6 {[%emt 0:00:00]} 2. c4 {[%emt 0:00:00]} e6 {[%emt 0:00:12]} 3. Nf3 {[%emt 0:00:03]} c5 {[%emt 0:00:15]} 4. d5 {[%emt 0:00:17]} exd5 {[%emt 0:00:30]} 5. cxd5 {[%emt 0:00:18]} d6 {[%emt 0:00:04]} 6. Nc3 {[%emt 0:00:16]} g6 {[%emt 0:00:06]} 7. Nd2 {[%emt 0:01:07]} Bg7 {[%emt 0:00:11]} 8. e4 {[%emt 0:00:14]} O-O {[%emt 0:00:11]} 9. Be2 {[%emt 0:00:23]} Re8 {[%emt 0:00:31]} 10. O-O {[%emt 0:00:35]} Nbd7 {[%emt 0:00:34]} 11. f4 {[%emt 0:01:28]} c4 {[%emt 0:02:50]} 12. Kh1 {[%emt 0:00:31]} b5 {[%emt 0:05:09]} 13. Nxb5 {[%emt 0:11:29]} Nxe4 {[%emt 0:09:37]} 14. Nxe4 {[%emt 0:00:31]} Rxe4 {[%emt 0:00:03]} 15. Bf3 {[%emt 0:00:23]} Re7 {[%emt 0:08:01]} 16. Nxd6 {[%emt 0:02:20]} Ba6 {[%emt 0:07:02]} 17. Ne4 {[%emt 0:33:43]} c3 {[%emt 0:08:41]} 18. bxc3 {[%emt 0:01:11]} Bxf1 {[%emt 0:00:15]} 19. Qxf1 {[%emt 0:00:15]} Qe8 {[%emt 0:00:53]} 20. Ba3 {[%emt 0:14:49]} Rxe4 {[%emt 0:00:49]} 21. Bxe4 {[%emt 0:00:17]} Qxe4 {[%emt 0:00:03]} 22. Qb5 {[%emt 0:00:34]} Nb6 {[%emt 0:05:26]} 23. d6 {[%emt 0:03:08]} Qc4 {[%emt 0:02:34]} 24. Rb1 {[%emt 0:02:57]} Qxb5 {[%emt 0:07:19]} 25. Rxb5 {[%emt 0:00:16]} Bxc3 {[%emt 0:01:42]} 26. Rc5 {[%emt 0:01:38]} Bf6 {[%emt 0:00:21]} 27. g3 {[%emt 0:09:43]} Rd8 {[%emt 0:02:39]} 28. Rc7 {[%emt 0:03:45]} Rd7 {[%emt 0:01:19]} 29. Rc6 {[%emt 0:00:11]} Bd8 {[%emt 0:00:45]} 30. Bb2 {[%emt 0:08:29]} f6 {[%emt 0:00:10]} 31. g4 {[%emt 0:00:41]} Nd5 {[%emt 0:01:05]} 32. f5 {[%emt 0:03:16]} gxf5 {[%emt 0:00:43]} 33. gxf5 {[%emt 0:00:09]} Ne3 {[%emt 0:00:21]} 34. Bd4 {[%emt 0:00:15]} Nxf5 {[%emt 0:00:18]} 35. Bc5 {[%emt 0:00:06]} a5 {[%emt 0:00:36]} 36. Ra6 {[%emt 0:02:00]} Kf7 {[%emt 0:00:12]} 37. Bb6 {[%emt 0:00:41]} Bxb6 {[%emt 0:00:54]} 38. Rxb6 {[%emt 0:00:06]} Rxd6 {[%emt 0:00:11]} 39. Rb5 {[%emt 0:00:33]} Ne3 {[%emt 0:00:09]} 40. Kg1 {[%emt 0:00:00]} Rd5 {[%emt 0:00:00]} 41. Rb3 {[%emt 0:00:58]} Re5 {[%emt 0:00:40]} 0-1

[Event "55th Rubinstein Memorial-A 2019"]
[Site "Polanica-Zdroj"]
[Date "2019.08.21"]
[Round "5.5"]
[White "Jaskolka, Tomasz"]
[Black "Shishkin, Vadim"]
[Result "1/2-1/2"]
[ECO "E15"]
[WhiteElo "2227"]
[BlackElo "2445"]
[Annotator "NA"]
[PlyCount "113"]
[EventDate "2019.08.17"]
[EventType "swiss"]
[EventCountry "POL"]
[SourceTitle "playchess.com"]
[Source "ChessBase"]
[SourceQuality "1"]
[TimeControl "40/5400+30:1800+30"]

1. d4 {[%emt 0:00:00]} Nf6 {[%emt 0:00:00]} 2. c4 {[%emt 0:00:00]} e6 {[%emt 0:00:19]} 3. Nf3 {[%emt 0:00:00]} b6 {[%emt 0:00:28]} 4. g3 {[%emt 0:00:02]} Ba6 {[%emt 0:00:10]} 5. Qc2 {[%emt 0:00:15]} c5 {[%emt 0:00:32]} 6. d5 {[%emt 0:11:26]} exd5 {[%emt 0:00:20]} 7. cxd5 {[%emt 0:00:04]} Bb7 {[%emt 0:00:24]} 8. e4 {[%emt 0:00:27]} Qe7 {[%emt 0:00:23]} 9. Bd3 {[%emt 0:00:23]} Nxd5 {[%emt 0:03:17]} 10. a3 {[%emt 0:00:46]} Nc6 {[%emt 0:11:08]} 11. O-O {[%emt 0:00:43]} Nc7 {[%emt 0:00:10]} 12. Nc3 {[%emt 0:03:41]} Qd8 {[%emt 0:02:57]} 13. Qe2 {[%emt 0:18:04]} Be7 {[%emt 0:09:19]} 14. e5 {[%emt 0:04:40]} Ne6 {[%emt 0:11:04]} 15. Be3 {[%emt 0:07:14]} O-O {[%emt 0:06:26]} 16. Rad1 {[%emt 0:05:39]} Ncd4 {[%emt 0:16:46]} 17. Bxd4 {[%emt 0:00:21]} cxd4 {[%emt 0:00:04]} 18. Nb5 {[%emt 0:06:03]} d6 {[%emt 0:13:57]} 19. Nbxd4 {[%emt 0:14:05]} Nxd4 {[%emt 0:05:11]} 20. Nxd4 {[%emt 0:00:06]} dxe5 {[%emt 0:01:07]} 21. Nf5 {[%emt 0:04:59]} Bf6 {[%emt 0:03:03]} 22. Be4 {[%emt 0:05:52]} Qb8 {[%emt 0:01:57]} 23. Rd7 {[%emt 0:02:55]} Bxe4 {[%emt 0:09:56]} 24. Qxe4 {[%emt 0:00:04]} Qe8 {[%emt 0:00:20]} 25. Rd6 {[%emt 0:09:28]} Kh8 {[%emt 0:00:05]} 26. Rfd1 {[%emt 0:00:35]} Rd8 {[%emt 0:01:04]} 27. Qg4 {[%emt 0:03:30]} Rxd6 {[%emt 0:01:00]} 28. Rxd6 {[%emt 0:00:04]} Rg8 {[%emt 0:00:06]} 29. Qc4 {[%emt 0:01:51]} Be7 {[%emt 0:01:45]} 30. Rc6 {[%emt 0:01:01]} g6 {[%emt 0:01:07]} 31. Nxe7 {[%emt 0:00:33]} Qxe7 {[%emt 0:00:03]} 32. Rc7 {[%emt 0:00:03]} b5 {[%emt 0:00:46]} 33. Qc6 {[%emt 0:00:48]} Qe6 {[%emt 0:00:06]} 34. Qxe6 {[%emt 0:00:19]} fxe6 {[%emt 0:00:02]} 35. Rxa7 {[%emt 0:00:11]} Rd8 {[%emt 0:00:16]} 36. Rb7 {[%emt 0:00:27]} Rd5 {[%emt 0:00:08]} 37. Kf1 {[%emt 0:00:49]} Rc5 {[%emt 0:00:19]} 38. Ke1 {[%emt 0:00:19]} Kg8 {[%emt 0:00:58]} 39. Kd2 {[%emt 0:00:12]} g5 {[%emt 0:00:58]} 40. h4 {[%emt 0:00:00]} gxh4 {[%emt 0:00:00]} 41. gxh4 {[%emt 0:01:05]} h5 {[%emt 0:01:42]} 42. Ke3 {[%emt 0:06:21]} Kf8 {[%emt 0:02:57]} 43. Rh7 {[%emt 0:06:09]} Rc2 {[%emt 0:02:49]} 44. Rxh5 {[%emt 0:03:58]} Rxb2 {[%emt 0:00:07]} 45. Rxe5 {[%emt 0:00:05]} Kf7 {[%emt 0:03:34]} 46. Kf3 {[%emt 0:03:06]} b4 {[%emt 0:02:12]} 47. axb4 {[%emt 0:00:41]} Rxb4 {[%emt 0:00:04]} 48. Re4 {[%emt 0:00:15]} Rb1 {[%emt 0:00:45]} 49. h5 {[%emt 0:01:04]} Kf6 {[%emt 0:04:31]} 50. Rh4 {[%emt 0:03:19]} Kg5 {[%emt 0:00:36]} 51. Rh2 {[%emt 0:00:09]} Kh6 {[%emt 0:00:26]} 52. Kf4 {[%emt 0:00:10]} Rb5 {[%emt 0:00:34]} 53. f3 {[%emt 0:01:33]} Rf5+ {[%emt 0:01:22]} 54. Ke4 {[%emt 0:01:17]} Rxh5 {[%emt 0:02:15]} 55. Rxh5+ {[%emt 0:00:11]} Kxh5 {[%emt 0:00:05]} 56. Ke5 {[%emt 0:00:10]} Kg5 {[%emt 0:00:38]} 57. Kxe6 {[%emt 0:00:03]} 1/2-1/2

[Event "55th Rubinstein Memorial-A 2019"]
[Site "Polanica-Zdroj"]
[Date "2019.08.21"]
[Round "5.6"]
[White "Goslawski, Michal"]
[Black "Goluch, Piotr"]
[Result "0-1"]
[ECO "A05"]
[WhiteElo "2160"]
[BlackElo "2418"]
[Annotator "NA"]
[PlyCount "43"]
[EventDate "2019.08.17"]
[EventType "swiss"]
[EventCountry "POL"]
[SourceTitle "playchess.com"]
[Source "ChessBase"]
[SourceQuality "1"]
[TimeControl "40/5400+30:1800+30"]

1. Nf3 {[%emt 0:00:00]} Nf6 {[%emt 0:00:00]} 2. c4 {[%emt 0:00:00]} e6 {[%emt 0:00:00]} 3. g3 {[%emt 0:00:00]} d5 {[%emt 0:00:00]} 4. d4 {[%emt 0:00:00]} Bb4+ {[%emt 0:00:00]} 5. Nbd2 {[%emt 0:00:45]} dxc4 {[%emt 0:00:01]} 6. Bg2 {[%emt 0:01:28]} b5 {[%emt 0:00:42]} 7. a4 {[%emt 0:03:29]} c6 {[%emt 0:00:05]} 8. O-O {[%emt 0:02:29]} O-O {[%emt 0:00:07]} 9. Ne1 {[%emt 0:03:15]} Nd5 {[%emt 0:03:10]} 10. e4 {[%emt 0:02:57]} Nb6 {[%emt 0:01:25]} 11. Nc2 {[%emt 0:01:51]} Bxd2 {[%emt 0:00:24]} 12. Bxd2 {[%emt 0:02:42]} Nxa4 {[%emt 0:00:05]} 13. Rxa4 {[%emt 0:01:08]} bxa4 {[%emt 0:00:04]} 14. e5 {[%emt 0:00:31]} c3 {[%emt 0:01:43]} 15. bxc3 {[%emt 0:05:06]} Ba6 {[%emt 0:00:03]} 16. Re1 {[%emt 0:00:09]} Bd3 {[%emt 0:00:58]} 17. Nb4 {[%emt 0:04:47]} Bg6 {[%emt 0:00:05]} 18. Qxa4 {[%emt 0:00:34]} a5 {[%emt 0:00:21]} 19. h4 {[%emt 0:01:57]} Qb6 {[%emt 0:05:29]} 20. Be3 {[%emt 0:04:55]} axb4 {[%emt 0:02:29]} 21. Qxa8 {[%emt 0:00:08]} b3 {[%emt 0:00:03]} 22. Bf1 0-1

[Event "55th Rubinstein Memorial-A 2019"]
[Site "Polanica-Zdroj"]
[Date "2019.08.21"]
[Round "5.7"]
[White "Mikhaletz, Lubomir"]
[Black "Vanduyfhuys, Daria"]
[Result "1/2-1/2"]
[ECO "A45"]
[WhiteElo "2412"]
[BlackElo "2160"]
[Annotator "NA"]
[PlyCount "110"]
[EventDate "2019.08.17"]
[EventType "swiss"]
[EventCountry "POL"]
[SourceTitle "playchess.com"]
[Source "ChessBase"]
[SourceQuality "1"]
[TimeControl "40/5400+30:1800+30"]

1. d4 {[%emt 0:00:00]} Nf6 {[%emt 0:00:00]} 2. Bg5 {[%emt 0:00:00]} d5 {[%emt 0:00:00]} 3. Bxf6 {[%emt 0:00:00]} exf6 {[%emt 0:00:00]} 4. e3 {[%emt 0:00:00]} Bd6 {[%emt 0:00:02]} 5. Nd2 {[%emt 0:00:22]} c6 {[%emt 0:00:46]} 6. Ne2 {[%emt 0:00:11]} O-O {[%emt 0:00:31]} 7. g3 {[%emt 0:00:24]} Nd7 {[%emt 0:03:53]} 8. Bg2 {[%emt 0:00:15]} f5 {[%emt 0:00:53]} 9. c4 {[%emt 0:00:38]} dxc4 {[%emt 0:00:43]} 10. Nxc4 {[%emt 0:00:13]} Bc7 {[%emt 0:02:54]} 11. O-O {[%emt 0:00:12]} Nf6 {[%emt 0:00:23]} 12. Nc3 {[%emt 0:01:16]} Be6 {[%emt 0:02:39]} 13. Qd3 {[%emt 0:01:36]} Qe7 {[%emt 0:03:55]} 14. Rab1 {[%emt 0:02:34]} a5 {[%emt 0:02:39]} 15. b3 {[%emt 0:02:49]} Rad8 {[%emt 0:01:49]} 16. Rfd1 {[%emt 0:01:11]} Rfe8 {[%emt 0:04:23]} 17. a3 {[%emt 0:05:41]} g6 {[%emt 0:15:02]} 18. Re1 {[%emt 0:12:38]} Nd5 {[%emt 0:03:07]} 19. Qd2 {[%emt 0:02:09]} b5 {[%emt 0:06:18]} 20. Nxd5 {[%emt 0:00:49]} Bxd5 {[%emt 0:00:12]} 21. Bxd5 {[%emt 0:01:45]} Rxd5 {[%emt 0:00:11]} 22. Nxa5 {[%emt 0:00:57]} c5 {[%emt 0:01:47]} 23. b4 {[%emt 0:02:46]} Bxa5 {[%emt 0:15:46]} 24. bxa5 {[%emt 0:01:41]} Qd7 {[%emt 0:00:05]} 25. a6 {[%emt 0:10:20]} Ra8 {[%emt 0:16:03]} 26. Qa5 {[%emt 0:01:58]} cxd4 {[%emt 0:00:06]} 27. exd4 {[%emt 0:01:15]} Qc6 {[%emt 0:00:27]} 28. Rbc1 {[%emt 0:06:48]} Rxa6 {[%emt 0:05:25]} 29. Qb4 {[%emt 0:02:42]} Qd6 {[%emt 0:02:33]} 30. Rc5 {[%emt 0:05:08]} Rxd4 {[%emt 0:03:51]} 31. Qxb5 {[%emt 0:00:41]} Ra8 {[%emt 0:00:13]} 32. Rc3 {[%emt 0:05:06]} Rd1 {[%emt 0:01:51]} 33. Rxd1 {[%emt 0:00:36]} Qxd1+ {[%emt 0:00:03]} 34. Kg2 {[%emt 0:00:07]} Qd4 {[%emt 0:01:13]} 35. Rc4 {[%emt 0:01:53]} Qd6 {[%emt 0:02:35]} 36. a4 {[%emt 0:01:04]} Rb8 {[%emt 0:00:20]} 37. Rc6 {[%emt 0:01:02]} Rxb5 {[%emt 0:01:36]} 38. Rxd6 {[%emt 0:00:03]} Rb4 {[%emt 0:00:07]} 39. a5 {[%emt 0:01:00]} Ra4 {[%emt 0:00:17]} 40. a6 {[%emt 0:00:00]} Ra3 {[%emt 0:00:00]} 41. Kf1 {[%emt 0:06:11]} Ra2 {[%emt 0:01:03]} 42. h3 {[%emt 0:01:00]} Kg7 {[%emt 0:02:05]} 43. Kg2 {[%emt 0:01:27]} Ra3 {[%emt 0:00:12]} 44. g4 {[%emt 0:00:15]} fxg4 {[%emt 0:00:13]} 45. hxg4 {[%emt 0:00:10]} h5 {[%emt 0:02:13]} 46. g5 {[%emt 0:13:49]} Kf8 {[%emt 0:02:16]} 47. f3 {[%emt 0:03:07]} Ra5 {[%emt 0:01:38]} 48. f4 {[%emt 0:00:59]} Ra3 {[%emt 0:00:04]} 49. Rb6 {[%emt 0:01:29]} Kg7 {[%emt 0:00:12]} 50. Rf6 {[%emt 0:00:19]} Kg8 {[%emt 0:00:18]} 51. Kf2 {[%emt 0:01:58]} Kg7 {[%emt 0:00:14]} 52. Rb6 {[%emt 0:00:08]} Kf8 {[%emt 0:00:41]} 53. Rb8+ {[%emt 0:00:32]} Kg7 {[%emt 0:00:12]} 54. Rb6 {[%emt 0:02:02]} Kf8 {[%emt 0:00:09]} 55. Kg2 {[%emt 0:01:08]} Kg7 {[%emt 0:00:08]} 1/2-1/2

[Event "55th Rubinstein Memorial-A 2019"]
[Site "Polanica-Zdroj"]
[Date "2019.08.21"]
[Round "5.8"]
[White "Wisniewski, Michal"]
[Black "Lewtak, Damian"]
[Result "0-1"]
[ECO "A04"]
[WhiteElo "2130"]
[BlackElo "2354"]
[Annotator "NA"]
[PlyCount "82"]
[EventDate "2019.08.17"]
[EventType "swiss"]
[EventCountry "POL"]
[SourceTitle "playchess.com"]
[Source "ChessBase"]
[SourceQuality "1"]
[TimeControl "40/5400+30:1800+30"]

1. Nf3 {[%emt 0:00:00]} f5 {[%emt 0:02:55]} 2. d3 {[%emt 0:00:00]} d5 {[%emt 0:05:00]} 3. e4 {[%emt 0:04:10]} dxe4 {[%emt 0:06:08]} 4. dxe4 {[%emt 0:01:51]} Qxd1+ {[%emt 0:00:05]} 5. Kxd1 {[%emt 0:00:02]} fxe4 {[%emt 0:01:02]} 6. Ng5 {[%emt 0:00:03]} Nf6 {[%emt 0:00:19]} 7. Bc4 {[%emt 0:01:12]} Bg4+ {[%emt 0:00:45]} 8. Ke1 {[%emt 0:00:09]} Nc6 {[%emt 0:05:06]} 9. Bf7+ {[%emt 0:04:59]} Kd7 {[%emt 0:01:58]} 10. h3 {[%emt 0:00:29]} Bf5 {[%emt 0:00:09]} 11. g4 {[%emt 0:00:09]} h6 {[%emt 0:01:43]} 12. gxf5 {[%emt 0:01:08]} hxg5 {[%emt 0:00:09]} 13. Be6+ {[%emt 0:00:14]} Ke8 {[%emt 0:02:59]} 14. c3 {[%emt 0:00:42]} g4 {[%emt 0:19:01]} 15. h4 {[%emt 0:00:06]} Nd8 {[%emt 0:02:55]} 16. Bf4 {[%emt 0:09:49]} g6 {[%emt 0:12:06]} 17. Bxc7 {[%emt 0:01:21]} Nxe6 {[%emt 0:02:25]} 18. fxe6 {[%emt 0:00:05]} Rc8 {[%emt 0:00:04]} 19. Bf4 {[%emt 0:02:21]} Bh6 {[%emt 0:02:18]} 20. Bxh6 {[%emt 0:00:44]} Rxh6 {[%emt 0:00:05]} 21. Na3 {[%emt 0:00:27]} Rc5 {[%emt 0:02:44]} 22. Nc2 {[%emt 0:02:27]} Re5 {[%emt 0:04:12]} 23. Nd4 {[%emt 0:00:05]} g5 {[%emt 0:07:35]} 24. h5 {[%emt 0:00:20]} Rxh5 {[%emt 0:00:12]} 25. Rxh5 {[%emt 0:02:30]} Nxh5 {[%emt 0:00:05]} 26. Kd2 {[%emt 0:00:03]} g3 {[%emt 0:06:44]} 27. fxg3 {[%emt 0:00:24]} e3+ {[%emt 0:00:51]} 28. Kd3 {[%emt 0:00:05]} Nxg3 {[%emt 0:00:21]} 29. Nf3 {[%emt 0:03:58]} Rxe6 {[%emt 0:00:23]} 30. Nxg5 {[%emt 0:00:02]} Rg6 {[%emt 0:01:04]} 31. Ne4 {[%emt 0:00:17]} Nf5 {[%emt 0:04:20]} 32. Rf1 {[%emt 0:00:03]} e6 {[%emt 0:00:17]} 33. Rh1 {[%emt 0:00:02]} Rg2 {[%emt 0:01:03]} 34. b4 {[%emt 0:01:49]} Rxa2 {[%emt 0:01:11]} 35. b5 {[%emt 0:01:38]} Kf7 {[%emt 0:01:34]} 36. c4 {[%emt 0:01:30]} b6 {[%emt 0:00:05]} 37. c5 {[%emt 0:02:16]} bxc5 {[%emt 0:00:07]} 38. Nxc5 {[%emt 0:00:10]} Ra3+ {[%emt 0:01:18]} 39. Kc4 {[%emt 0:00:12]} e2 {[%emt 0:00:35]} 40. Nd3 {[%emt 0:00:00]} Ne3+ {[%emt 0:00:00]} 41. Kd4 {[%emt 0:00:22]} Nc2+ {[%emt 0:00:19]} 0-1

[Event "55th Rubinstein Memorial-A 2019"]
[Site "Polanica-Zdroj"]
[Date "2019.08.21"]
[Round "5.9"]
[White "Slomczewski, Michal"]
[Black "Kozak, Antoni"]
[Result "0-1"]
[ECO "A10"]
[WhiteElo "2115"]
[BlackElo "2354"]
[Annotator "NA"]
[PlyCount "106"]
[EventDate "2019.08.17"]
[EventType "swiss"]
[EventCountry "POL"]
[SourceTitle "playchess.com"]
[Source "ChessBase"]
[SourceQuality "1"]
[TimeControl "40/5400+30:1800+30"]

1. c4 {[%emt 0:00:10]} b6 {[%emt 0:02:09]} 2. Nc3 {[%emt 0:01:40]} Bb7 {[%emt 0:00:30]} 3. d4 {[%emt 0:01:19]} Nf6 {[%emt 0:00:41]} 4. Nf3 {[%emt 0:01:07]} e6 {[%emt 0:00:08]} 5. a3 {[%emt 0:03:09]} g6 {[%emt 0:08:40]} 6. Qc2 {[%emt 0:08:23]} c5 {[%emt 0:00:06]} 7. dxc5 {[%emt 0:08:48]} bxc5 {[%emt 0:00:17]} 8. e4 {[%emt 0:00:07]} d6 {[%emt 0:00:27]} 9. Bd3 {[%emt 0:00:40]} Nc6 {[%emt 0:01:00]} 10. O-O {[%emt 0:01:12]} Bg7 {[%emt 0:00:05]} 11. Rb1 {[%emt 0:06:22]} a5 {[%emt 0:01:22]} 12. Nb5 {[%emt 0:04:07]} O-O {[%emt 0:00:51]} 13. Bd2 {[%emt 0:02:05]} Qe7 {[%emt 0:03:14]} 14. Bc3 {[%emt 0:00:32]} Nd7 {[%emt 0:03:30]} 15. Bxg7 {[%emt 0:10:49]} Kxg7 {[%emt 0:00:03]} 16. Qc3+ {[%emt 0:00:08]} f6 {[%emt 0:04:40]} 17. Nd2 {[%emt 0:02:06]} g5 {[%emt 0:00:08]} 18. Bc2 {[%emt 0:07:38]} Nde5 {[%emt 0:01:42]} 19. h4 {[%emt 0:04:11]} Ba6 {[%emt 0:05:05]} 20. Rbe1 {[%emt 0:08:41]} Kh8 {[%emt 0:04:03]} 21. hxg5 {[%emt 0:06:40]} fxg5 {[%emt 0:00:06]} 22. Re3 {[%emt 0:01:24]} Bxb5 {[%emt 0:02:19]} 23. cxb5 {[%emt 0:00:13]} Nd4 {[%emt 0:00:04]} 24. a4 {[%emt 0:01:16]} g4 {[%emt 0:00:05]} 25. f4 {[%emt 0:11:22]} gxf3 {[%emt 0:00:16]} 26. Nxf3 {[%emt 0:00:06]} Qf6 {[%emt 0:02:26]} 27. Bd1 {[%emt 0:00:25]} Qg7 {[%emt 0:11:49]} 28. Nxe5 {[%emt 0:03:53]} Rxf1+ {[%emt 0:00:03]} 29. Kxf1 {[%emt 0:00:01]} Qxe5 {[%emt 0:00:02]} 30. Bf3 {[%emt 0:01:03]} Rg8 {[%emt 0:01:34]} 31. Qd2 {[%emt 0:02:12]} Qh2 {[%emt 0:00:21]} 32. Qf2 {[%emt 0:00:31]} Qh1+ {[%emt 0:03:04]} 33. Qg1 {[%emt 0:00:07]} Qh6 {[%emt 0:00:02]} 34. g3 {[%emt 0:02:09]} Nc2 {[%emt 0:03:31]} 35. Re2 {[%emt 0:01:58]} Nd4 {[%emt 0:04:59]} 36. Re3 {[%emt 0:00:11]} d5 {[%emt 0:02:49]} 37. Kg2 {[%emt 0:00:54]} Qf4 {[%emt 0:00:53]} 38. Qf2 {[%emt 0:00:24]} Qg5 {[%emt 0:02:51]} 39. Bd1 {[%emt 0:00:49]} dxe4 {[%emt 0:02:29]} 40. Rxe4 {[%emt 0:00:00]} Nf5 {[%emt 0:00:00]} 41. Rxe6 {[%emt 0:07:23]} Nxg3 {[%emt 0:00:39]} 42. Qe3 {[%emt 0:08:00]} Qxe3 {[%emt 0:02:50]} 43. Rxe3 {[%emt 0:00:05]} Nf5+ {[%emt 0:00:03]} 44. Kf2 {[%emt 0:00:20]} Nxe3 {[%emt 0:00:04]} 45. Kxe3 {[%emt 0:00:03]} Kg7 {[%emt 0:00:03]} 46. Kd2 {[%emt 0:09:03]} Rd8+ {[%emt 0:00:05]} 47. Kc2 {[%emt 0:00:03]} Kf6 {[%emt 0:00:07]} 48. Bf3 {[%emt 0:00:09]} Ke5 {[%emt 0:01:16]} 49. Kc3 {[%emt 0:00:12]} Rd4 {[%emt 0:00:12]} 50. b3 {[%emt 0:01:48]} Kd6 {[%emt 0:00:04]} 51. b6 {[%emt 0:00:51]} Rb4 {[%emt 0:00:04]} 52. b7 {[%emt 0:00:03]} Kc7 {[%emt 0:00:02]} 53. Bd5 {[%emt 0:00:11]} h5 {[%emt 0:00:04] Kd4} 0-1

[Event "55th Rubinstein Memorial-A 2019"]
[Site "Polanica-Zdroj"]
[Date "2019.08.21"]
[Round "5.10"]
[White "Psyk, Radoslaw"]
[Black "Luba, Lukasz"]
[Result "0-1"]
[ECO "B06"]
[WhiteElo "2326"]
[BlackElo "2130"]
[Annotator "NA"]
[PlyCount "120"]
[EventDate "2019.08.17"]
[EventType "swiss"]
[EventCountry "POL"]
[SourceTitle "playchess.com"]
[Source "ChessBase"]
[SourceQuality "1"]
[TimeControl "40/5400+30:1800+30"]

1. e4 {[%emt 0:00:00]} d6 {[%emt 0:00:31]} 2. d4 {[%emt 0:00:36]} g6 {[%emt 0:00:16]} 3. Nc3 {[%emt 0:01:22]} Bg7 {[%emt 0:00:12]} 4. Be3 {[%emt 0:00:11]} Nf6 {[%emt 0:02:52]} 5. Qd2 {[%emt 0:01:57]} Nc6 {[%emt 0:05:36]} 6. d5 {[%emt 0:11:15]} Ne5 {[%emt 0:00:25]} 7. h3 {[%emt 0:15:48]} h5 {[%emt 0:06:19]} 8. f4 {[%emt 0:01:56]} Ned7 {[%emt 0:00:02]} 9. Nf3 {[%emt 0:00:28]} Nc5 {[%emt 0:00:32]} 10. Bxc5 {[%emt 0:06:44]} dxc5 {[%emt 0:00:07]} 11. e5 {[%emt 0:00:09]} Ng8 {[%emt 0:03:54]} 12. e6 {[%emt 0:10:28]} fxe6 {[%emt 0:02:57]} 13. Bd3 {[%emt 0:04:34]} Rh6 {[%emt 0:00:07]} 14. O-O-O {[%emt 0:06:41]} exd5 {[%emt 0:05:44]} 15. Nxd5 {[%emt 0:00:54]} Qd6 {[%emt 0:04:00]} 16. Qa5 {[%emt 0:23:50]} b6 {[%emt 0:08:51]} 17. Bb5+ {[%emt 0:00:02]} Kf8 {[%emt 0:04:23]} 18. Qa4 {[%emt 0:00:52]} Bb7 {[%emt 0:02:11]} 19. Ng5 {[%emt 0:04:32]} Bxd5 {[%emt 0:07:56]} 20. Rxd5 {[%emt 0:00:21]} Qxd5 {[%emt 0:01:22]} 21. Bc6 {[%emt 0:00:42]} Qd6 {[%emt 0:05:18]} 22. Bxa8 {[%emt 0:02:31]} Bd4 {[%emt 0:01:04]} 23. Kb1 {[%emt 0:00:39]} b5 {[%emt 0:05:24]} 24. Qb3 {[%emt 0:01:42]} c4 {[%emt 0:02:16]} 25. Qxb5 {[%emt 0:00:29]} Qb6 {[%emt 0:00:07]} 26. Bd5 {[%emt 0:03:11]} Qxb5 {[%emt 0:02:21]} 27. Ne6+ {[%emt 0:00:02]} Kf7 {[%emt 0:00:09]} 28. Nxc7+ {[%emt 0:00:22]} Qxd5 {[%emt 0:00:07]} 29. Nxd5 {[%emt 0:00:01]} Nf6 {[%emt 0:01:48]} 30. Rd1 {[%emt 0:00:27]} Bc5 {[%emt 0:02:57]} 31. Nxf6 {[%emt 0:01:17]} exf6 {[%emt 0:00:41]} 32. Rd7+ {[%emt 0:00:36]} Ke6 {[%emt 0:00:07]} 33. Rc7 {[%emt 0:00:05]} Kd6 {[%emt 0:01:15]} 34. Rg7 {[%emt 0:00:08]} Be3 {[%emt 0:00:18]} 35. b3 {[%emt 0:00:28]} c3 {[%emt 0:01:35]} 36. b4 {[%emt 0:00:24]} h4 {[%emt 0:00:49]} 37. a4 {[%emt 0:00:16]} Kd5 {[%emt 0:00:30]} 38. Rc7 {[%emt 0:00:35]} Bd4 {[%emt 0:00:07]} 39. Ka2 {[%emt 0:00:14]} Ke4 {[%emt 0:01:14]} 40. Kb3 {[%emt 0:00:00]} Kxf4 {[%emt 0:00:00]} 41. Kc4 {[%emt 0:01:09]} Bb6 {[%emt 0:02:36]} 42. Rf7 {[%emt 0:00:09]} g5 {[%emt 0:00:07]} 43. a5 {[%emt 0:00:26]} Bf2 {[%emt 0:00:06]} 44. Kxc3 {[%emt 0:05:08]} Kg3 {[%emt 0:03:32]} 45. Kd3 {[%emt 0:00:06]} Kxg2 {[%emt 0:00:08]} 46. c4 {[%emt 0:00:25]} g4 {[%emt 0:00:06]} 47. Rg7 {[%emt 0:00:05]} Kxh3 {[%emt 0:00:21]} 48. c5 {[%emt 0:00:01]} Rh8 {[%emt 0:00:49]} 49. Rxa7 {[%emt 0:00:35]} Rg8 {[%emt 0:00:26]} 50. Kc4 {[%emt 0:00:34]} g3 {[%emt 0:00:06]} 51. Rd7 {[%emt 0:00:02]} g2 {[%emt 0:01:48]} 52. Rd1 {[%emt 0:00:04]} g1=Q {[%emt 0:00:24]} 53. Rxg1 {[%emt 0:00:02]} Rxg1 {[%emt 0:00:19]} 54. c6 {[%emt 0:04:10]} Rc1+ {[%emt 0:01:14]} 55. Kd5 {[%emt 0:00:23]} Be1 {[%emt 0:00:11]} 56. a6 {[%emt 0:00:19]} Bf2 {[%emt 0:00:05]} 57. Kd6 {[%emt 0:00:46]} Bb6 {[%emt 0:00:08]} 58. Kd7 {[%emt 0:00:18]} Kg4 {[%emt 0:00:18]} 59. b5 {[%emt 0:00:17]} h3 {[%emt 0:00:22]} 60. Kc8 {[%emt 0:00:06]} h2 {[%emt 0:00:26]} 0-1